[Event "FAI-ch Master 2022"]
[Site "Eidi"]
[Date "2022.04.09"]
[Round "1.1"]
[White "Egilstoft, Rogvi"]
[Black "Nolsoe, Rani"]
[Result "1-0"]
[ECO "B07"]
[WhiteElo "2378"]
[BlackElo "2072"]
[Annotator "TA"]
[PlyCount "67"]
[EventDate "2022.04.10"]
[EventType "tourn"]
[EventCountry "FAI"]
[SourceTitle "playchess.com"]
[Source "ChessBase"]
[SourceQuality "1"]
[TimeControl "40/5400+30:1800+30"]

{[%evp 9,67,36,43,38,35,19,29,16,28,13,17,0,2,0,0,-24,8,0,14,0,0,0,0,0,0,0,42,38,42,35,35,30,35,35,35,35,48,11,42,0,46,6,101,38,238,233,293,306,290,287,291,295,297,257,292,242,357,338,316,301]} 1. e4 {[%emt 0:00:04]} d6 {[%emt 0:00:32]} 2. d4 {[%emt 0:01:18]} Nf6 {[%emt 0:00:37]} 3. f3 {[%emt 0:00:22]} g6 {[%emt 0:01:22]} 4. Be3 {[%emt 0:00:09]} a6 {[%emt 0:02:21]} 5. Nc3 {[%emt 0:01:33]} Bg7 {[%emt 0:02:23]} 6. Qd2 {[%emt 0:00:12] B07: Pirc Defence: Miscellaneous Systems.} b5 {[%emt 0:03:10][%cal Bb7b5,Bb5b4][%mdl 32]} 7. a4 {[%emt 0:04:57]} b4 {[%emt 0:05:51]} 8. Nd1 {[%emt 0:02:02] White has an edge.} a5 {[%emt 0:01:47]} 9. Nf2 {[%emt 0:02:11]} Nbd7 {[%emt 0:03:24] [#]} 10. Bd3 $146 {[%emt 0:05:13]} ({Predecessor:} 10. c3 O-O 11. Bb5 c5 12. Ne2 Qc7 13. O-O Nb6 14. d5 e6 15. dxe6 Bxe6 16. cxb4 axb4 {0-1 (132) Molina,R (2434)-Kobo,O (2449) Chess.com INT 2020}) 10... c5 {[%emt 0:04:34]} 11. Ne2 {[%emt 0:00:37]} O-O {[%emt 0:05:33]} 12. O-O {[%emt 0:01:13]} Ba6 {[%emt 0:08:50] White must now prevent ...c4.} 13. Bxa6 {[%emt 0:00:52] Threatens to win with Bb5.} Rxa6 {[%emt 0:00:59]} 14. c4 {[%emt 0:02:24]} cxd4 {[%emt 0:04:21]} 15. Nxd4 {[%emt 0:00:24]} Nc5 {[%emt 0:00:33]} 16. Qc2 {[%emt 0:03:13]} Nfd7 {[%emt 0:07:37]} 17. b3 {[%emt 0:00:48]} Qc7 {[%emt 0:16:20]} 18. Rab1 {[%emt 0:00:24]} Raa8 {[%emt 0:03:20]} 19. Rfd1 {[%emt 0:00:23]} Rac8 {[%emt 0:01:02]} 20. Nh3 {[%emt 0:05:53]} Qb8 {[%emt 0:02:41]} 21. Qf2 {[%emt 0:01:41]} Rfd8 {[%emt 0:04:46]} 22. Qh4 {[%emt 0:01:51]} Nf6 {[%emt 0:02:06]} 23. Ne2 {[%emt 0:01:21]} Qb7 {[%emt 0:02:11]} 24. Kh1 {[%emt 0:01:44]} h5 {[%emt 0:01:11]} (24... e5 $11 {deserves consideration.}) 25. Nef4 {[%emt 0:20:18]} Kf8 {[%emt 0:03:29] [#]} (25... e6 $11) 26. Ng5 {[%emt 0:05:23]} (26. e5 $1 $16 {[%cal Re5f6]} dxe5 27. Rxd8+ Rxd8 {[#]} 28. Nxg6+ $1 (28. Bxc5 exf4 29. Qxf4 Kg8 $14) 28... fxg6 29. Bxc5) 26... e5 {[%emt 0:01:51] This move loses the game for Black.} (26... Kg8 $1 $14) 27. Bxc5 $18 {[%emt 0:11:01]} dxc5 {[%emt 0:03:06] [#]} 28. Nh7+ $1 {[%emt 0:02:04][%mdl 512] Pair of Knights!} Ke8 {[%emt 0:03:39]} 29. Nxf6+ {[%emt 0:01:32]} Bxf6 {[%emt 0:00:07]} 30. Qxf6 {[%emt 0:00:09]} exf4 {[%emt 0:00:14]} 31. Qxf4 {[%emt 0:03:21]} Kf8 {[%emt 0:05:20]} 32. h3 {[%emt 0:01:26]} Rd4 {[%emt 0:00:19]} (32... Qe7 $142 33. Rd5 Kg8) 33. Rxd4 {[%emt 0:02:10]} cxd4 {[%emt 0:00:07]} 34. Qd6+ {[%emt 0:00:08] Weighted Error Value: White=0.15 (very precise) /Black=0.35} 1-0

[Event "FAI-ch Master 2022"]
[Site "Eidi"]
[Date "2022.04.09"]
[Round "1.2"]
[White "Simonsen, Hans Kristian"]
[Black "Samuelsen, Carl Eli Nolsoe"]
[Result "1/2-1/2"]
[ECO "D55"]
[WhiteElo "2166"]
[BlackElo "2158"]
[Annotator "RC"]
[PlyCount "108"]
[EventDate "2022.04.10"]
[EventType "tourn"]
[EventCountry "FAI"]
[SourceTitle "playchess.com"]
[Source "ChessBase"]
[SourceQuality "1"]
[TimeControl "40/5400+30:1800+30"]

1. d4 {[%emt 0:00:03]} Nf6 {[%emt 0:01:03]} 2. c4 {[%emt 0:00:12]} e6 {[%emt 0:00:41]} 3. Nf3 {[%emt 0:00:43]} b6 {[%emt 0:01:04]} 4. Nc3 {[%emt 0:08:00]} Bb7 {[%emt 0:00:37]} 5. Bg5 {[%emt 0:03:24]} d5 {[%emt 0:07:06]} 6. cxd5 {[%emt 0:04:26]} exd5 {[%emt 0:00:51]} 7. e3 {[%emt 0:00:24]} Be7 {[%emt 0:02:40]} 8. Bd3 {[%emt 0:01:32]} Nbd7 {[%emt 0:04:49]} 9. O-O {[%emt 0:08:09]} O-O {[%emt 0:03:06]} 10. Rc1 {[%emt 0:05:50]} a6 {[%emt 0:07:41]} 11. Bb1 {[%emt 0:16:38]} Re8 {[%emt 0:08:18]} 12. Qd3 {[%emt 0:12:02]} Ne4 {[%emt 0:12:51]} 13. Bf4 {[%emt 0:00:25]} c5 {[%emt 0:03:23]} 14. dxc5 {[%emt 0:07:43]} Ndxc5 {[%emt 0:02:29]} 15. Qc2 {[%emt 0:01:35]} Rc8 {[%emt 0:03:50]} 16. Nd4 {[%emt 0:00:35]} g6 {[%emt 0:02:59]} 17. Rfd1 {[%emt 0:01:12]} Nxc3 {[%emt 0:02:58]} 18. Qxc3 {[%emt 0:03:02]} Ne4 {[%emt 0:03:46]} 19. Qe1 {[%emt 0:02:04]} Bd6 {[%emt 0:07:23]} 20. Rxc8 {[%emt 0:02:31]} Qxc8 {[%emt 0:03:55]} 21. Bxd6 {[%emt 0:03:18]} Nxd6 {[%emt 0:00:01]} 22. Bd3 {[%emt 0:01:57]} Ne4 {[%emt 0:05:52]} 23. h3 {[%emt 0:04:40]} Qc5 {[%emt 0:02:25]} 24. Rc1 {[%emt 0:01:31]} Qd6 {[%emt 0:00:10]} 25. Qe2 {[%emt 0:01:35]} Nc5 {[%emt 0:01:47]} 26. a3 {[%emt 0:01:28]} Nxd3 {[%emt 0:03:01]} 27. Qxd3 {[%emt 0:00:03]} Rc8 {[%emt 0:00:44]} 28. Rxc8+ {[%emt 0:00:12]} Bxc8 {[%emt 0:00:09]} 29. Ne2 {[%emt 0:00:53]} Qc5 {[%emt 0:02:22]} 30. Nc3 {[%emt 0:04:09]} Bb7 {[%emt 0:00:39]} 31. Qd4 {[%emt 0:00:48]} Bc6 {[%emt 0:03:58]} 32. Qe5 {[%emt 0:00:59]} h5 {[%emt 0:01:12]} 33. Kh2 {[%emt 0:00:15]} a5 {[%emt 0:00:50]} 34. Ne2 {[%emt 0:00:41]} Bb5 {[%emt 0:01:20]} 35. Nd4 {[%emt 0:01:00]} Bd3 {[%emt 0:00:42]} 36. Nf3 {[%emt 0:01:58]} Qc2 {[%emt 0:01:07]} 37. Qe8+ {[%emt 0:00:56]} Kg7 {[%emt 0:00:13]} 38. Ne5 {[%emt 0:00:24]} Qc7 {[%emt 0:00:39]} 39. f4 {[%emt 0:00:06]} Be4 {[%emt 0:00:40]} 40. b4 {[%emt 0:00:00]} axb4 {[%emt 0:00:00]} 41. axb4 {[%emt 0:16:27]} f6 {[%emt 0:22:54]} 42. Nd7 {[%emt 0:00:43]} Qd6 {[%emt 0:01:06]} 43. b5 {[%emt 0:02:59]} Bf5 {[%emt 0:01:33]} 44. Nb8 {[%emt 0:00:31]} d4 {[%emt 0:02:48]} 45. Nc6 {[%emt 0:05:40]} Bd7 {[%emt 0:02:21]} 46. Qe4 {[%emt 0:00:17]} dxe3 {[%emt 0:02:09]} 47. Qxe3 {[%emt 0:00:31]} Bxc6 {[%emt 0:00:41]} 48. bxc6 {[%emt 0:00:11]} Qxc6 {[%emt 0:00:10]} 49. Qe7+ {[%emt 0:00:08]} Kg8 {[%emt 0:00:30]} 50. Qd8+ {[%emt 0:00:15]} Kf7 {[%emt 0:01:03]} 51. Qh8 {[%emt 0:00:22]} Qe4 {[%emt 0:00:18]} 52. Qh7+ {[%emt 0:00:34]} Ke6 {[%emt 0:00:20]} 53. Qc7 {[%emt 0:00:29]} Qd4 {[%emt 0:00:50]} 54. Qc6+ {[%emt 0:00:30]} Kf7 {[%emt 0:00:51]} 1/2-1/2

[Event "FAI-ch Master 2022"]
[Site "Eidi"]
[Date "2022.04.09"]
[Round "1.3"]
[White "Nielsen, Hogni Egilstoft"]
[Black "Nielsen, Torkil"]
[Result "1-0"]
[ECO "C00"]
[WhiteElo "2405"]
[BlackElo "2135"]
[Annotator "TA"]
[PlyCount "57"]
[EventDate "2022.04.10"]
[EventType "tourn"]
[EventCountry "FAI"]
[SourceTitle "playchess.com"]
[Source "ChessBase"]
[SourceQuality "1"]
[TimeControl "40/5400+30:1800+30"]

{[%evp 14,57,-7,-22,0,-9,26,15,28,47,44,16,37,32,50,59,64,49,55,46,56,51,56,48,108,90,79,89,91,32,41,34,45,44,90,83,79,82,149,141,177,160,152,118,705,677]} 1. d3 {[%emt 0:00:19]} c5 {[%emt 0:01:58]} 2. g3 {[%emt 0:00:18]} Nf6 {[%emt 0:01:21]} 3. Bg2 {[%emt 0:00:13]} e6 {[%emt 0:00:51]} 4. Nf3 {[%emt 0:01:47]} d5 {[%emt 0:03:27]} 5. O-O {[%emt 0:02:19]} Nc6 {[%emt 0:02:03]} 6. Nbd2 {[%emt 0:00:56]} Be7 {[%emt 0:01:47]} 7. e4 {[%emt 0:01:07]} O-O {[%emt 0:00:28]} 8. Re1 {[%emt 0:06:50]} Qb6 {[%emt 0:08:49] C00: French: Unusual White 2nd moves.} 9. c3 {[%emt 0:01:16]} Bd7 {[%emt 0:01:56]} 10. Qe2 {[%emt 0:11:38] [#]} Rad8 $146 {[%emt 0:09:26] The position is equal.} ({Predecessor:} 10... Rac8 11. h3 d4 12. Nc4 Qc7 13. Bf4 Qd8 14. g4 b5 15. Nce5 Nxe5 16. Bxe5 dxc3 17. Bxc3 {1-0 (47) Morcuende Hurtado,M (1669)-Couso Villa,A (1036) Isla de la Palma 2018}) 11. e5 {[%emt 0:01:47]} Ne8 {[%emt 0:00:45]} 12. Nf1 {[%emt 0:00:39][%cal Bd2f1,Bf1e3,Be3g4,Bg4f6][%mdl 32]} f6 {[%emt 0:03:53]} 13. exf6 {[%emt 0:02:35]} Bxf6 {[%emt 0:02:50]} 14. Ne3 {[%emt 0:08:41]} d4 {[%emt 0:09:40]} 15. Ng4 {[%emt 0:02:35]} dxc3 {[%emt 0:03:52]} 16. Nxf6+ {[%emt 0:00:25][%mdl 64] [#] Remove Defender} Nxf6 {[%emt 0:00:14]} 17. bxc3 {[%emt 0:00:13]} e5 {[%emt 0:03:52]} 18. Bg5 {[%emt 0:18:31]} ({Don't blunder} 18. Nxe5 $2 Nxe5 19. Bf4 (19. Qxe5 $2 Rfe8 $19) 19... Ng6 $19) 18... Bf5 {[%emt 0:10:33]} ({Better is} 18... Bg4 $14) 19. Nxe5 {[%emt 0:09:30]} Nxe5 {[%emt 0:02:27][%mdl 64] Remove Defender} 20. Qxe5 {[%emt 0:03:16]} Bxd3 {[%emt 0:00:10]} 21. Be3 {[%emt 0:04:03] This bishop pair is nice.} (21. Bxf6 $16 Rxf6 22. Bd5+ Kh8 23. c4) 21... Rc8 $14 {[%emt 0:07:13]} 22. Rad1 $36 {[%emt 0:09:07][%cal Ba1d1,Bd1d3,Bd3d6,Bd6d7][%mdl 2080] White is more active.} Rfe8 {[%emt 0:05:26]} 23. Qf4 {[%emt 0:02:02]} Qa6 {[%emt 0:05:48] [#]} (23... Be4 $14) 24. Bxb7 $1 {[%emt 0:05:55]} Qxb7 {[%emt 0:00:27]} 25. Rxd3 {[%emt 0:00:03]} Re4 {[%emt 0:02:29]} (25... Qa6 $142 26. Rd2 Qe6) 26. Qf5 $16 {[%emt 0:00:59]} c4 {[%emt 0:01:24]} 27. Rd6 {[%emt 0:01:37]} Rce8 {[%emt 0:01:22]} 28. Red1 {[%emt 0:01:11] &Bianco is more active.} Ng4 $2 {[%emt 0:03:29][%mdl 8192]} (28... R4e5 $16 29. Qf4 Qe4 30. Bxa7 R5e7) 29. Rd7 {[%emt 0:01:15] Weighted Error Value: White=0.10 (very precise) /Black=0.19 (very precise)} 1-0

[Event "FAI-ch Master 2022"]
[Site "Eidi"]
[Date "2022.04.09"]
[Round "1.4"]
[White "Apol, Luitjen Akselsson"]
[Black "Olsen, Wille"]
[Result "1-0"]
[ECO "C10"]
[WhiteElo "2154"]
[BlackElo "2006"]
[Annotator "RC"]
[PlyCount "56"]
[EventDate "2022.04.10"]
[EventType "tourn"]
[EventCountry "FAI"]
[SourceTitle "playchess.com"]
[Source "ChessBase"]
[SourceQuality "1"]
[TimeControl "40/5400+30:1800+30"]

1. e4 {[%emt 0:00:26]} e6 {[%emt 0:00:15]} 2. d4 {[%emt 0:00:27]} d5 {[%emt 0:00:09]} 3. Nd2 {[%emt 0:00:32]} dxe4 {[%emt 0:00:44]} 4. Nxe4 {[%emt 0:00:48]} Nf6 {[%emt 0:00:13]} 5. Nxf6+ {[%emt 0:04:32]} gxf6 {[%emt 0:02:53]} 6. Be3 {[%emt 0:16:05]} Nc6 {[%emt 0:13:55]} 7. Nf3 {[%emt 0:08:02]} b6 {[%emt 0:06:35]} 8. g3 {[%emt 0:02:55]} Bb7 {[%emt 0:18:35]} 9. Bg2 {[%emt 0:00:39]} Qd5 {[%emt 0:04:41]} 10. O-O {[%emt 0:02:58]} O-O-O {[%emt 0:00:44]} 11. Ne5 {[%emt 0:20:39]} Qxg2+ {[%emt 0:01:04]} 12. Kxg2 {[%emt 0:00:04]} Nxe5+ {[%emt 0:00:18]} 13. f3 {[%emt 0:00:20]} Ng4 {[%emt 0:00:27]} 14. Qe2 {[%emt 0:02:52]} h5 {[%emt 0:00:25]} 15. h4 {[%emt 0:11:43]} e5 {[%emt 0:02:52]} 16. Rad1 {[%emt 0:02:51]} exd4 {[%emt 0:04:23]} 17. Bxd4 {[%emt 0:01:48]} Bd6 {[%emt 0:00:56]} 18. Kh3 {[%emt 0:03:40]} Rhe8 {[%emt 0:02:09]} 19. Qxe8 {[%emt 0:01:29]} Rxe8 {[%emt 0:00:40]} 20. fxg4 {[%emt 0:00:02]} hxg4+ {[%emt 0:00:55]} 21. Kxg4 {[%emt 0:00:29]} Rg8+ {[%emt 0:01:50]} 22. Kf5 {[%emt 0:00:50]} Rxg3 {[%emt 0:03:38]} 23. Rd3 {[%emt 0:05:11]} Rg6 {[%emt 0:03:31]} 24. Rg1 {[%emt 0:00:09]} Rh6 {[%emt 0:03:07]} 25. Bxf6 {[%emt 0:01:45]} Rh5+ {[%emt 0:00:40]} 26. Rg5 {[%emt 0:00:39]} Rh6 {[%emt 0:00:39]} 27. Rg8+ {[%emt 0:02:38]} Kd7 {[%emt 0:00:20]} 28. Kg5 {[%emt 0:00:08]} Be4 {[%emt 0:01:26]} 1-0

[Event "FAI-ch Master 2022"]
[Site "Eidi"]
[Date "2022.04.10"]
[Round "2.1"]
[White "Nolsoe, Rani"]
[Black "Olsen, Wille"]
[Result "1-0"]
[ECO "C02"]
[WhiteElo "2072"]
[BlackElo "2006"]
[Annotator "NA RC"]
[PlyCount "106"]
[EventDate "2022.04.10"]
[EventType "tourn"]
[EventCountry "FAI"]
[SourceTitle "playchess.com"]
[Source "ChessBase"]
[SourceQuality "1"]
[TimeControl "40/5400+30:1800+30"]

1. e4 {[%emt 0:07:28]} e6 {[%emt 0:01:12]} 2. d4 {[%emt 0:00:55]} d5 {[%emt 0:00:08]} 3. e5 {[%emt 0:01:22]} c5 {[%emt 0:00:27]} 4. Nf3 {[%emt 0:00:41]} Nc6 {[%emt 0:01:07]} 5. Bd3 {[%emt 0:00:49]} Bd7 {[%emt 0:04:18]} 6. O-O {[%emt 0:04:08]} h6 {[%emt 0:17:37]} 7. Re1 {[%emt 0:02:41]} Qc7 {[%emt 0:18:30]} 8. Nbd2 {[%emt 0:21:49]} cxd4 {[%emt 0:09:30]} 9. a3 {[%emt 0:06:47]} (9. Nb3 $11) 9... Bc5 {[%emt 0:05:04]} 10. b4 {[%emt 0:02:31]} Bb6 {[%emt 0:01:07]} 11. Nb3 {[%emt 0:00:22]} Nge7 {[%emt 0:00:41]} 12. Bb2 {[%emt 0:04:39]} a6 {[%emt 0:05:31]} 13. Qe2 {[%emt 0:03:19]} g5 {[%emt 0:08:15]} (13... O-O $11) 14. Nfxd4 {[%emt 0:04:01]} Nxd4 {[%emt 0:02:00]} 15. Nxd4 {[%emt 0:04:10]} Ng6 {[%emt 0:03:20]} 16. g3 {[%emt 0:03:08]} Rc8 {[%emt 0:05:09]} 17. Rac1 $16 {[%emt 0:04:13]} O-O {[%emt 0:04:52]} 18. Kg2 {[%emt 0:12:25]} Qd8 {[%emt 0:01:45]} 19. Nb3 {[%emt 0:04:51]} Ba4 {[%emt 0:02:44]} 20. Nd4 {[%emt 0:02:22]} Qe7 {[%emt 0:01:15]} 21. Rf1 {[%emt 0:04:23]} Rfd8 {[%emt 0:01:36]} 22. h3 {[%emt 0:00:08]} Rc4 {[%emt 0:01:27]} 23. c3 {[%emt 0:02:03]} Bc7 {[%emt 0:01:56]} 24. f4 {[%emt 0:01:32]} gxf4 {[%emt 0:00:48]} 25. gxf4 {[%emt 0:00:12]} Qh4 {[%emt 0:00:18]} 26. Qg4 {[%emt 0:00:19]} Bb6 {[%emt 0:00:37]} 27. Qxh4 {[%emt 0:01:13]} Nxh4+ {[%emt 0:00:08]} 28. Kg3 {[%emt 0:00:04]} Ng6 {[%emt 0:00:38]} 29. Bxc4 {[%emt 0:00:14]} dxc4 {[%emt 0:00:07]} 30. Rce1 {[%emt 0:00:10]} Bxd4 {[%emt 0:01:03]} 31. cxd4 {[%emt 0:00:09]} Ne7 {[%emt 0:00:20]} 32. Rc1 {[%emt 0:01:25]} Nf5+ {[%emt 0:00:32]} 33. Kf2 {[%emt 0:00:41]} Kh7 {[%emt 0:00:40]} 34. Rxc4 {[%emt 0:00:51]} Rd7 {[%emt 0:00:25]} 35. Rfc1 {[%emt 0:00:45]} Kg6 {[%emt 0:00:23]} 36. Rc7 {[%emt 0:00:23]} Rxc7 {[%emt 0:00:46]} 37. Rxc7 {[%emt 0:00:05]} Bc6 {[%emt 0:00:11]} 38. Bc3 {[%emt 0:00:57]} Bd5 {[%emt 0:00:38]} 39. Rd7 {[%emt 0:00:39]} Bc6 {[%emt 0:00:25]} 40. Rc7 {[%emt 0:00:00]} Bd5 {[%emt 0:00:00]} 41. Ke2 {[%emt 0:22:00]} Be4 {[%emt 0:16:38]} 42. a4 {[%emt 0:04:12]} Bc6 {[%emt 0:01:19]} 43. Rxc6 {[%emt 0:03:38]} bxc6 {[%emt 0:00:14]} 44. Kd3 {[%emt 0:00:03]} Ne7 {[%emt 0:01:52]} 45. Kc4 {[%emt 0:00:10]} Nd5 {[%emt 0:00:12]} 46. Bd2 {[%emt 0:00:35]} Nb6+ {[%emt 0:00:24]} 47. Kc5 {[%emt 0:01:07]} Nxa4+ {[%emt 0:00:11]} 48. Kxc6 {[%emt 0:00:05]} Nb2 {[%emt 0:02:10]} 49. Kb7 {[%emt 0:01:22]} Nc4 {[%emt 0:00:19]} 50. Be1 {[%emt 0:01:06]} Kf5 {[%emt 0:00:12]} 51. Kxa6 {[%emt 0:00:10]} Kxf4 {[%emt 0:00:20]} 52. b5 {[%emt 0:01:33]} Ke4 {[%emt 0:00:10]} 53. Bc3 {[%emt 0:00:06]} Ne3 {[%emt 0:01:24]} 1-0

[Event "FAI-ch Master 2022"]
[Site "Eidi"]
[Date "2022.04.10"]
[Round "2.2"]
[White "Nielsen, Torkil"]
[Black "Apol, Luitjen Akselsson"]
[Result "0-1"]
[ECO "B22"]
[WhiteElo "2135"]
[BlackElo "2154"]
[Annotator "RC"]
[PlyCount "78"]
[EventDate "2022.04.10"]
[EventType "tourn"]
[EventCountry "FAI"]
[SourceTitle "playchess.com"]
[Source "ChessBase"]
[SourceQuality "1"]
[TimeControl "40/5400+30:1800+30"]

1. e4 {[%emt 0:03:00]} c5 {[%emt 0:04:51]} 2. c3 {[%emt 0:00:52]} Nf6 {[%emt 0:00:12]} 3. e5 {[%emt 0:00:16]} Nd5 {[%emt 0:00:18]} 4. d4 {[%emt 0:00:10]} cxd4 {[%emt 0:00:26]} 5. cxd4 {[%emt 0:00:12]} d6 {[%emt 0:00:28]} 6. Bc4 {[%emt 0:00:28]} Nb6 {[%emt 0:00:39]} 7. Bb5+ {[%emt 0:00:09]} Nc6 {[%emt 0:00:07]} 8. Nf3 {[%emt 0:00:46]} Bd7 {[%emt 0:00:55]} 9. O-O {[%emt 0:16:25]} Nxe5 {[%emt 0:00:25]} 10. Nxe5 {[%emt 0:00:09]} dxe5 {[%emt 0:17:50]} 11. Bxd7+ {[%emt 0:01:58]} Nxd7 {[%emt 0:03:59]} 12. dxe5 {[%emt 0:01:36]} Nxe5 {[%emt 0:00:40]} 13. Qe2 {[%emt 0:01:18]} Nc6 {[%emt 0:01:10]} 14. Rd1 {[%emt 0:01:30]} Qc8 {[%emt 0:04:27]} 15. Nc3 {[%emt 0:09:18]} e5 {[%emt 0:11:21]} 16. Bg5 {[%emt 0:19:47]} Qe6 {[%emt 0:11:40]} 17. Nd5 {[%emt 0:14:45]} Bd6 {[%emt 0:03:10]} 18. Nf4 {[%emt 0:08:22]} exf4 {[%emt 0:00:16]} 19. Qxe6+ {[%emt 0:00:16]} fxe6 {[%emt 0:00:01]} 20. Rxd6 {[%emt 0:00:14]} e5 {[%emt 0:00:29]} 21. f3 {[%emt 0:07:51]} O-O {[%emt 0:09:31]} 22. Rad1 {[%emt 0:04:34]} Rac8 {[%emt 0:00:56]} 23. Rd7 {[%emt 0:01:32]} Rf7 {[%emt 0:00:10]} 24. Rxf7 {[%emt 0:00:51]} Kxf7 {[%emt 0:00:01]} 25. Rd7+ {[%emt 0:00:21]} Kg6 {[%emt 0:00:06]} 26. Bh4 {[%emt 0:01:04]} Na5 {[%emt 0:00:44]} 27. g4 {[%emt 0:03:15]} Rc1+ {[%emt 0:04:25]} 28. Kg2 {[%emt 0:00:10]} Nc4 {[%emt 0:03:35]} 29. Bd8 {[%emt 0:02:42]} Ne3+ {[%emt 0:00:31]} 30. Kf2 {[%emt 0:00:41]} Rc2+ {[%emt 0:00:35]} 31. Kg1 {[%emt 0:00:29]} Rg2+ {[%emt 0:00:17]} 32. Kh1 {[%emt 0:00:01]} Rxb2 {[%emt 0:00:11]} 33. h4 {[%emt 0:00:07]} e4 {[%emt 0:04:58]} 34. h5+ {[%emt 0:00:41]} Kh6 {[%emt 0:00:01]} 35. g5+ {[%emt 0:01:37]} Kxh5 {[%emt 0:00:03]} 36. Rxg7 {[%emt 0:00:13]} exf3 {[%emt 0:02:15]} 37. Rxh7+ {[%emt 0:00:02]} Kg4 {[%emt 0:00:13]} 38. Rh4+ {[%emt 0:01:08]} Kxh4 {[%emt 0:00:12]} 39. g6+ {[%emt 0:00:00]} Kh3 {[%emt 0:00:01]} 0-1